fUST/lending_fUST_20250808
["ID","MTS","AMOUNT","RATE_DAILY","PERIOD"]
[377863067,1754584243893,-152.0,0.00021918,2]
[377863069,1754584243902,-152.0,0.00021918,2]
[377863071,1754584243911,-152.0,0.00021918,2]
[377863073,1754584243920,-152.0,0.00021918,2]
[377863075,1754584243930,-152.0,0.00021918,2]
[377863077,1754584243940,-152.0,0.00021918,2]
[377863079,1754584243949,-152.0,0.00021918,2]
[377863081,1754584243958,-152.0,0.00021918,2]
[377863083,1754584243967,-152.0,0.00021918,2]
[377863085,1754584243976,-152.0,0.00021918,2]
[377863087,1754584243985,-152.0,0.00021918,2]
[377863089,1754584243995,-152.0,0.00021918,2]
[377863091,1754584244004,-152.0,0.00021918,2]
[377863093,1754584244013,-152.0,0.00021918,2]
[377863095,1754584244022,-152.0,0.00021918,2]
[377863097,1754584244031,-152.0,0.00021918,2]
[377863099,1754584244040,-152.0,0.00021918,2]
[377863101,1754584244049,-152.0,0.00021918,2]
[377863103,1754584244058,-152.0,0.00021918,2]
[377863104,1754584244067,-152.0,0.00021918,2]
[377863107,1754584244077,-152.0,0.00021918,2]
[377863109,1754584244087,-152.0,0.00021918,2]
[377863111,1754584244096,-152.0,0.00021918,2]
[377863112,1754584244105,-152.0,0.00021918,2]
[377863114,1754584244114,-152.0,0.00021918,2]
[377863116,1754584244123,-152.0,0.00021918,2]
[377863118,1754584244132,-152.0,0.00021918,2]
[377863120,1754584244141,-152.0,0.00021918,2]
[377863122,1754584244151,-152.0,0.00021918,2]
[377863125,1754584244163,-152.0,0.00021918,2]
[377863127,1754584244173,-152.0,0.00021918,2]
[377863129,1754584244183,-152.0,0.00021918,2]
[377863131,1754584244193,-152.0,0.00021918,2]
[377863133,1754584244202,-152.0,0.00021918,2]
[377863134,1754584244211,-152.0,0.00021918,2]
[377863136,1754584244220,-152.0,0.00021918,2]
[377863138,1754584244229,-152.0,0.00021918,2]
[377863140,1754584244239,-152.0,0.00021918,2]
[377863142,1754584244248,-152.0,0.00021918,2]
[377863144,1754584244257,-152.0,0.00021918,2]
[377863145,1754584244267,-152.0,0.00021918,2]
[377863146,1754584244276,-152.0,0.00021918,2]
[377863147,1754584244285,-152.0,0.00021918,2]
[377863148,1754584244295,-268.0166794,0.00021918,2]
[377863149,1754584244304,-152.0,0.00021918,2]
[377863150,1754584244313,-152.0,0.00021918,2]
[377863151,1754584244322,-152.0,0.00021918,2]
[377863152,1754584244331,-353.0,0.00021949,2]
[377863153,1754584244340,-500.0,0.00021973,2]
[377863154,1754584244348,-500.0,0.00021973,2]
[377863155,1754584244357,-500.0,0.00021973,2]
[377863156,1754584244366,-500.0,0.00021973,2]
[377863157,1754584244375,-150.0,0.00021973,2]
[377863158,1754584244384,-500.0,0.00021973,2]
[377863159,1754584244393,-500.0,0.00021973,2]
[377863160,1754584244402,-500.0,0.00021973,2]
[377863161,1754584244411,-500.0,0.00021973,2]
[377863162,1754584244419,-551.46575271,0.00021973,2]
[377863163,1754584244430,-500.0,0.00021973,2]
[377863164,1754584244438,-295.26012765,0.00021973,2]
[377863165,1754584244447,-500.0,0.00021973,2]
[377863166,1754584244461,-500.0,0.00021973,2]
[377863167,1754584244470,-500.0,0.00021973,2]
[377863168,1754584244479,-486.99160467,0.00021973,2]
[377863169,1754584244488,-500.0,0.00021973,2]
[377863170,1754584244498,-500.0,0.00021973,2]
[377863171,1754584244506,-500.0,0.00021973,2]
[377863172,1754584244515,-500.0,0.00021973,2]
[377863173,1754584244524,-500.0,0.00021973,2]
[377863174,1754584244533,-500.0,0.00021973,2]
[377863175,1754584244542,-500.0,0.00021973,2]
[377863176,1754584244551,-500.0,0.00021973,2]
[377863177,1754584244559,-506.3967921,0.00021973,2]
[377863178,1754584244568,-500.0,0.00021973,2]
[377863179,1754584244577,-500.0,0.00021973,2]
[377863180,1754584244586,-500.0,0.00021973,2]
[377863181,1754584244595,-3346.02388569,0.00022,2]
[377863182,1754584244603,-332.69,0.00022073,2]
[377863183,1754584244612,-500.0,0.00022075,2]
[377863184,1754584244621,-4735.81136656,0.00022076,2]
[377863185,1754584244629,-405.39020136,0.00022123,2]
[377863186,1754584244638,-1619.93924465,0.00022123,2]
[377863187,1754584244647,-646.36163113,0.00022173,2]
[377863188,1754584244656,-502.91692368,0.00022173,2]
[377863189,1754584244664,-500.0,0.00022173,2]
[377863190,1754584244674,-500.0,0.00022173,2]
[377863191,1754584244682,-500.0,0.00022173,2]
[377863192,1754584244691,-500.0,0.0002219,2]
[377863193,1754584244700,-500.0,0.0002219,2]
[377863194,1754584244709,-500.0,0.0002219,2]
[377863195,1754584244718,-460.0,0.00022191,2]
[377863196,1754584244727,-460.0,0.00022191,2]
[377863197,1754584244736,-460.0,0.00022191,2]
[377863198,1754584244744,-460.0,0.00022191,2]
[377863199,1754584244754,-460.0,0.00022191,2]
[377863200,1754584244762,-460.0,0.00022191,2]
[377863201,1754584244771,-460.0,0.00022191,2]
[377863202,1754584244780,-460.0,0.00022191,2]
[377863203,1754584244789,-460.0,0.00022191,2]
[377863204,1754584244797,-460.0,0.00022191,2]
[377863205,1754584244806,-460.0,0.00022191,2]
[377863206,1754584244815,-460.0,0.00022191,2]
[377863207,1754584244824,-460.0,0.00022191,2]
[377863208,1754584244833,-150.12650732,0.00022191,2]
[377863209,1754584244841,-460.0,0.00022191,2]
[377863210,1754584244851,-460.0,0.00022191,2]
[377863211,1754584244859,-339.93537319,0.00022191,2]
[377863212,1754584244869,-1153.91,0.00022191,2]
[377863213,1754584244877,-542.83,0.00022191,2]
[377863214,1754584244887,-460.0,0.00022191,2]
[377863215,1754584244896,-460.0,0.00022191,2]
[377863216,1754584244905,-460.0,0.00022191,2]
[377863217,1754584244914,-460.0,0.00022191,2]
[377863218,1754584244923,-460.0,0.00022191,2]
[377863219,1754584244932,-759.38,0.00022191,2]
[377863220,1754584244941,-1230.81,0.00022191,2]
[377863221,1754584244950,-460.0,0.00022191,2]
[377863222,1754584244958,-460.0,0.00022191,2]
[377863223,1754584244967,-460.0,0.00022191,2]
[377863224,1754584244976,-460.0,0.00022191,2]
[377863225,1754584244984,-460.0,0.00022191,2]
[377863226,1754584244993,-605.72147381,0.00022191,2]
[377863227,1754584245002,-460.0,0.00022191,2]
[377863228,1754584245011,-460.0,0.00022191,2]
[377863229,1754584245020,-460.0,0.00022191,2]
[377863230,1754584245028,-629.59,0.00022191,2]
[377863231,1754584245038,-500.02,0.00022191,2]
[377863232,1754584245046,-460.0,0.00022191,2]
[377863233,1754584245055,-567.74946114,0.00022191,2]
[377863234,1754584245064,-460.0,0.00022191,2]
[377863235,1754584245073,-460.0,0.00022191,2]
[377863236,1754584245082,-460.0,0.00022191,2]
[377863237,1754584245091,-641.18,0.00022191,2]
[377863238,1754584245099,-460.0,0.00022191,2]
[377863239,1754584245109,-460.0,0.00022191,2]
[377863240,1754584245117,-460.0,0.00022191,2]
[377863241,1754584245127,-460.0,0.00022191,2]
[377863242,1754584245135,-460.0,0.00022191,2]
[377863243,1754584245144,-712.12,0.00022191,2]
[377863244,1754584245153,-460.0,0.00022191,2]
[377863245,1754584245162,-460.0,0.00022191,2]
[377863246,1754584245171,-460.0,0.00022191,2]
[377863247,1754584245180,-460.0,0.00022191,2]
[377863248,1754584245189,-288.67778186,0.00022191,2]
[377863249,1754584245198,-460.0,0.00022191,2]
[377863250,1754584245207,-460.0,0.00022191,2]
[377863251,1754584245333,-460.0,0.00022191,2]
[377863252,1754584245343,-460.0,0.00022191,2]
[377863253,1754584245351,-1182.88,0.00022191,2]
[377863254,1754584245360,-1464.49,0.00022191,2]
[377863255,1754584245369,-460.0,0.00022191,2]
[377863256,1754584245378,-4847.35,0.00022191,2]
[377863257,1754584245387,-292.58783493,0.00022191,2]
[377863258,1754584245396,-460.0,0.00022191,2]
[377863259,1754584245405,-416.48045482,0.00022191,2]
[377863260,1754584245414,-460.0,0.00022191,2]
[377863261,1754584245423,-927.23,0.00022191,2]
[377863262,1754584245432,-460.0,0.00022191,2]
[377863263,1754584245441,-460.0,0.00022191,2]
[377863264,1754584245453,-710.54,0.00022191,2]
[377863265,1754584245465,-460.0,0.00022191,2]
[377863266,1754584245475,-460.0,0.00022191,2]
[377863267,1754584245484,-460.0,0.00022191,2]
[377863268,1754584245495,-1068.94,0.00022191,2]
[377863269,1754584245505,-460.0,0.00022191,2]
[377863270,1754584245515,-460.0,0.00022191,2]
[377863271,1754584245525,-460.0,0.00022191,2]
[377863272,1754584245534,-460.0,0.00022191,2]
[377863273,1754584245544,-460.0,0.00022191,2]
[377863274,1754584245554,-460.0,0.00022191,2]
[377863275,1754584245563,-460.0,0.00022191,2]
[377863276,1754584245574,-460.0,0.00022191,2]
[377863277,1754584245584,-460.0,0.00022191,2]
[377863278,1754584245593,-460.0,0.00022191,2]
[377863279,1754584245602,-853.89,0.00022191,2]
[377863282,1754584245824,-502.22799852,0.00022191,2]
[377863283,1754584245834,-460.0,0.00022191,2]
[377863284,1754584245844,-460.0,0.00022191,2]
[377863285,1754584245853,-1067.73,0.00022191,2]
[377863286,1754584245862,-771.82,0.00022191,2]
[377863287,1754584245872,-460.0,0.00022191,2]
[377863288,1754584245881,-460.0,0.00022191,2]
[377863289,1754584245891,-460.0,0.00022191,2]
[377863290,1754584245900,-2924.96,0.00022191,2]
[377863291,1754584245911,-1327.7,0.00022191,2]
[377863292,1754584245920,-771.69,0.00022191,2]
[377863293,1754584245929,-460.0,0.00022191,2]
[377863294,1754584245939,-151.0,0.00022191,7]
[377863295,1754584245948,-460.0,0.00022191,2]
[377863296,1754584245957,-5500.46,0.00022191,2]
[377863297,1754584245971,-1159.97,0.00022191,2]
[377863298,1754584245982,-460.0,0.00022191,2]
[377863299,1754584245992,-460.0,0.00022191,2]
[377863300,1754584246001,-460.0,0.00022191,2]
[377863301,1754584246011,-1317.53,0.00022191,2]
[377863302,1754584246020,-2857.67,0.00022191,2]
[377863303,1754584246030,-1906.67,0.00022191,2]
[377863304,1754584246039,-460.0,0.00022191,2]
[377863305,1754584246048,-460.0,0.00022191,2]
[377863306,1754584246058,-2575.66,0.00022191,2]
[377863307,1754584246067,-460.0,0.00022191,2]
[377863308,1754584246077,-460.0,0.00022191,2]
[377863309,1754584246086,-460.0,0.00022191,2]
[377863310,1754584246095,-315.72091378,0.00022191,2]
[377863311,1754584246105,-664.58,0.00022191,2]
[377863312,1754584246114,-460.0,0.00022191,2]
[377863313,1754584246124,-269.907826,0.00022191,7]
[377863314,1754584246133,-460.0,0.00022191,2]
[377863315,1754584246142,-460.0,0.00022191,2]
[377863316,1754584246152,-460.0,0.00022191,2]
[377863317,1754584246161,-813.33,0.00022191,2]
[377863318,1754584246170,-460.0,0.00022191,2]
[377863319,1754584246181,-460.0,0.00022191,2]
[377863320,1754584246191,-883.04,0.00022191,2]
[377863321,1754584246200,-151.0,0.00022191,7]
[377863322,1754584246208,-460.0,0.00022191,2]
[377863323,1754584246217,-1005.19,0.00022191,2]
[377863324,1754584246226,-151.0,0.00022191,7]
[377863325,1754584246234,-460.0,0.00022191,2]
[377863326,1754584246243,-460.0,0.00022191,2]
[377863327,1754584246252,-645.91,0.00022191,2]
[377863328,1754584246261,-460.0,0.00022191,2]
[377863329,1754584246271,-151.0,0.00022191,7]
[377863330,1754584246280,-151.0,0.00022191,7]
[377863331,1754584246289,-720.8,0.00022191,2]
[377863332,1754584246299,-611.03,0.00022191,2]
[377863333,1754584246308,-460.0,0.00022191,2]
[377863334,1754584246317,-3089.42,0.00022191,2]
[377863335,1754584246326,-918.95,0.00022191,2]
[377863336,1754584246335,-460.0,0.00022191,2]
[377863337,1754584246344,-460.0,0.00022191,2]
[377863338,1754584246353,-812.94,0.00022191,2]
[377863339,1754584246363,-460.0,0.00022191,2]
[377863340,1754584246372,-460.0,0.00022191,2]
[377863341,1754584246381,-460.0,0.00022191,2]
[377863342,1754584246390,-744.62,0.00022191,2]
[377863343,1754584246399,-469.61,0.00022191,2]
[377863344,1754584246409,-464.83962237,0.00022191,2]
[377863345,1754584246418,-460.0,0.00022191,2]
[377863346,1754584246427,-460.0,0.00022191,2]
[377863347,1754584246437,-460.0,0.00022191,2]
[377863348,1754584246446,-460.0,0.00022191,2]
[377863349,1754584246459,-460.0,0.00022191,2]
[377863350,1754584246468,-460.0,0.00022191,2]
[377863351,1754584246477,-460.0,0.00022191,2]
[377863352,1754584246487,-883.31,0.00022191,2]
[377863353,1754584246496,-460.0,0.00022191,2]
[377863354,1754584246506,-1015.93,0.00022191,2]
[377863355,1754584246515,-460.0,0.00022191,2]
[377863356,1754584246524,-1651.28,0.00022191,2]
[377863357,1754584246534,-460.0,0.00022191,2]
[377863358,1754584246544,-460.0,0.00022191,2]
[377863359,1754584246553,-460.0,0.00022191,2]
[377863360,1754584246562,-460.0,0.00022191,2]
[377863361,1754584246572,-707.88,0.00022191,2]
[377863362,1754584246581,-2546.39,0.00022191,2]
[377863363,1754584246591,-979.54,0.00022191,2]
[377863364,1754584246601,-460.0,0.00022191,2]
[377863365,1754584246610,-460.0,0.00022191,2]
[377863366,1754584246621,-460.0,0.00022191,2]
[377863367,1754584246631,-1722.71,0.00022191,2]
[377863368,1754584246640,-460.0,0.00022191,2]
[377863369,1754584246650,-460.0,0.00022191,2]
[377863370,1754584246659,-460.0,0.00022191,2]
[377863371,1754584246669,-638.65,0.00022191,2]
[377863372,1754584246678,-460.0,0.00022191,2]
[377863373,1754584246689,-460.0,0.00022191,2]
[377863374,1754584246698,-482.09,0.00022191,2]
[377863375,1754584246708,-668.81,0.00022191,2]
[377863376,1754584246719,-460.0,0.00022191,2]
[377863377,1754584246729,-460.0,0.00022191,2]
[377863378,1754584246738,-460.0,0.00022191,2]
[377863379,1754584246747,-460.0,0.00022191,2]
[377863380,1754584246756,-494.26,0.00022191,2]
[377863381,1754584246766,-460.0,0.00022191,2]
[377863382,1754584246775,-358.7268859,0.000222,2]
[377863383,1754584246785,-293.0794966,0.00022295,2]
[377863384,1754584246794,-579.259526,0.00022295,2]
[377863385,1754584246803,-160.4004305,0.00022295,2]
[377863386,1754584246813,-310.8527547,0.00022295,2]
[377863387,1754584246822,-293.0794966,0.00022295,2]
[377863388,1754584246832,-579.259526,0.00022295,2]
[377863389,1754584246841,-160.4004305,0.00022295,2]
[377863390,1754584246851,-293.0794966,0.00022295,2]
[377863391,1754584246860,-579.259526,0.00022295,2]
[377863392,1754584246869,-160.4004305,0.00022295,2]
[377863393,1754584246878,-579.259526,0.00022295,2]
[377863394,1754584246888,-293.0794966,0.00022295,2]
[377863395,1754584246898,-293.0794966,0.00022295,2]
[377863396,1754584246908,-293.0794966,0.00022295,2]
[377863397,1754584246917,-293.0794966,0.00022295,2]
[377863398,1754584246926,-293.0794966,0.00022295,2]
[377863399,1754584246936,-222.2596681,0.00022295,2]
[377863400,1754584246946,-430.943079,0.00022306,2]
[377863401,1754584246955,-430.943079,0.00022306,2]
[377863402,1754584246965,-430.943079,0.00022306,2]
[377863403,1754584246974,-3496.4323449,0.00022332,2]
[377863404,1754584246983,-500.0,0.00022421,2]
[377863405,1754584246993,-500.0,0.00022421,2]
[377863406,1754584247002,-500.0,0.00022421,2]
[377863407,1754584247012,-578.98598067,0.00022421,2]
[377863408,1754584247022,-204.9754078,0.00022421,2]
[377863409,1754584247031,-500.0,0.00022421,2]
[377863410,1754584247041,-500.0,0.00022421,2]
[377863411,1754584247050,-500.0,0.00022421,2]
[377863412,1754584247060,-1000.0,0.00022421,2]
[377863413,1754584247070,-1000.0,0.00022421,2]
[377863414,1754584247080,-500.0,0.00022421,2]
[377863415,1754584247090,-500.0,0.00022421,2]
[377863416,1754584247099,-500.0,0.00022421,2]
[377863417,1754584247109,-500.0,0.00022421,2]
[377863418,1754584247127,-500.0,0.00022464,2]
[377863419,1754584247137,-238.00779686,0.00022464,2]
[377863420,1754584247147,-513.35,0.00022465,2]
[377863421,1754584247157,-574.18328303,0.00022465,2]
[377863422,1754584247166,-460.0,0.00022465,2]
[377863423,1754584247177,-460.0,0.00022465,2]
[377863424,1754584247187,-460.0,0.00022465,2]
[377863425,1754584247196,-460.0,0.00022465,2]
[377863426,1754584247205,-460.0,0.00022465,2]
[377863427,1754584247214,-494.14419642,0.00022465,2]
[377863428,1754584247223,-460.0,0.00022465,2]
[377863429,1754584247233,-460.0,0.00022465,2]
[377863430,1754584247242,-460.0,0.00022465,2]
[377863431,1754584247251,-460.0,0.00022465,2]
[377863432,1754584247260,-151.0,0.00022465,7]
[377863433,1754584247269,-460.0,0.00022465,2]
[377863434,1754584247278,-1153.91,0.00022465,2]
[377863435,1754584247287,-542.83,0.00022465,2]
[377863436,1754584247296,-460.0,0.00022465,2]
[377863437,1754584247305,-460.0,0.00022465,2]
[377863438,1754584247314,-460.0,0.00022465,2]
[377863439,1754584247323,-460.0,0.00022465,2]
[377863440,1754584247332,-460.0,0.00022465,2]
[377863441,1754584247341,-759.38,0.00022465,2]
[377863442,1754584247351,-1230.81,0.00022465,2]
[377863443,1754584247361,-460.0,0.00022465,2]
[377863444,1754584247371,-460.0,0.00022465,2]
[377863445,1754584247380,-460.0,0.00022465,2]
[377863446,1754584247389,-460.0,0.00022465,2]
[377863447,1754584247398,-629.59,0.00022465,2]
[377863448,1754584247408,-500.02,0.00022465,2]
[377863449,1754584247417,-460.0,0.00022465,2]
[377863450,1754584247426,-460.0,0.00022465,2]
[377863451,1754584247435,-151.0,0.00022465,7]
[377863452,1754584247445,-641.18,0.00022465,2]
[377863453,1754584247458,-135.08343639,0.00022465,7]
[377863454,1754584247618,-17.49291961,0.00022465,7]
[377863455,1754584247628,-460.0,0.00022465,2]
[377863456,1754584247637,-712.12,0.00022465,2]
[377863457,1754584247647,-1756.564561,0.00022465,7]
[377863458,1754584247656,-313.292897,0.00022465,7]
[377863459,1754584247665,-1756.564561,0.00022465,7]
[377863460,1754584247674,-460.0,0.00022465,2]
[377863461,1754584247687,-313.292897,0.00022465,7]
[377863462,1754584247696,-460.0,0.00022465,2]
[377863463,1754584247705,-301.944512,0.00022465,7]
[377863464,1754584247715,-460.0,0.00022465,2]
[377863465,1754584247724,-301.944512,0.00022465,7]
[377863466,1754584247733,-460.0,0.00022465,2]
[377863467,1754584247742,-460.0,0.00022465,2]
[377863468,1754584247751,-160.47333607,0.00022465,2]
[377863469,1754584247760,-1182.88,0.00022465,2]
[377863470,1754584247769,-1464.49,0.00022465,2]
[377863471,1754584247778,-460.0,0.00022465,2]
[377863472,1754584247787,-4847.35,0.00022465,2]
[377863473,1754584247796,-151.0,0.00022465,7]
[377863474,1754584247806,-460.0,0.00022465,2]
[377863475,1754584247815,-151.0,0.00022465,7]
[377863476,1754584247824,-460.0,0.00022465,2]
[377863477,1754584247833,-927.23,0.00022465,2]
[377863478,1754584247842,-460.0,0.00022465,2]
[377863479,1754584247851,-460.0,0.00022465,2]
[377863480,1754584247860,-710.54,0.00022465,2]
[377863481,1754584247868,-460.0,0.00022465,2]
[377863482,1754584247878,-1068.94,0.00022465,2]
[377863483,1754584247887,-460.0,0.00022465,2]
[377863484,1754584247897,-479.53594511,0.00022465,2]
[377863485,1754584247906,-460.0,0.00022465,2]
[377863486,1754584247915,-460.0,0.00022465,2]
[377863487,1754584247924,-460.0,0.00022465,2]
[377863488,1754584247936,-560.094558,0.00022465,7]
[377863489,1754584247945,-853.89,0.00022465,2]
[377863490,1754584247954,-560.094558,0.00022465,7]
[377863491,1754584247964,-1067.73,0.00022465,2]
[377863492,1754584247973,-771.82,0.00022465,2]
[377863493,1754584248107,-460.0,0.00022465,2]
[377863494,1754584248117,-460.0,0.00022465,2]
[377863495,1754584248127,-151.0,0.00022465,7]
[377863496,1754584248136,-1327.7,0.00022465,2]
[377863497,1754584248146,-2924.96,0.00022465,2]
[377863498,1754584248155,-771.69,0.00022465,2]
[377863499,1754584248165,-460.0,0.00022465,2]
[377863500,1754584248175,-618.455089,0.00022465,7]
[377863501,1754584248188,-151.0,0.00022465,7]
[377863502,1754584248198,-618.455089,0.00022465,7]
[377863503,1754584248208,-5500.46,0.00022465,2]
[377863504,1754584248218,-1159.97,0.00022465,2]
[377863505,1754584248228,-460.0,0.00022465,2]
[377863506,1754584248238,-460.0,0.00022465,2]
[377863507,1754584248249,-1317.53,0.00022465,2]
[377863508,1754584248259,-152.09807,0.00022465,7]
[377863509,1754584248269,-2857.67,0.00022465,2]
[377863510,1754584248278,-1906.67,0.00022465,2]
[377863511,1754584248287,-1492.974833,0.00022465,7]
[377863512,1754584248297,-460.0,0.00022465,2]
[377863513,1754584248306,-1492.974833,0.00022465,7]
[377863514,1754584248316,-2575.66,0.00022465,2]
[377863515,1754584248326,-460.0,0.00022465,2]
[377863516,1754584248335,-460.0,0.00022465,2]
[377863517,1754584248345,-664.58,0.00022465,2]
[377863518,1754584248355,-460.0,0.00022465,2]
[377863519,1754584248364,-460.0,0.00022465,2]
[377863520,1754584248373,-151.0,0.00022465,7]
[377863521,1754584248383,-813.33,0.00022465,2]
[377863522,1754584248393,-151.0,0.00022465,7]
[377863523,1754584248402,-160.0,0.00022465,7]
[377863524,1754584248412,-12660.90439413,0.00022465,7]
[377863525,1754584248422,-460.0,0.00022465,2]
[377863526,1754584248433,-460.0,0.00022465,2]
[377863527,1754584248443,-883.04,0.00022465,2]
[377863528,1754584248453,-151.0,0.00022465,7]
[377863529,1754584248466,-460.0,0.00022465,2]
[377863530,1754584248476,-1005.19,0.00022465,2]
[377863531,1754584248485,-151.0,0.00022465,7]
[377863532,1754584248495,-460.0,0.00022465,2]
[377863533,1754584248503,-460.0,0.00022465,2]
[377863534,1754584248512,-645.91,0.00022465,2]
[377863535,1754584248522,-460.0,0.00022465,2]
[377863536,1754584248531,-152.31062,0.00022465,7]
[377863537,1754584248540,-151.0,0.00022465,7]
[377863538,1754584248550,-720.8,0.00022465,2]
[377863539,1754584248560,-611.03,0.00022465,2]
[377863540,1754584248569,-460.0,0.00022465,2]
[377863541,1754584248579,-3089.42,0.00022465,2]
[377863542,1754584248588,-918.95,0.00022465,2]
[377863543,1754584248598,-460.0,0.00022465,2]
[377863544,1754584248607,-460.0,0.00022465,2]
[377863545,1754584248617,-812.94,0.00022465,2]
[377863546,1754584248627,-381.46991035,0.00022465,2]
[377863547,1754584248636,-744.62,0.00022465,2]
[377863548,1754584248646,-469.61,0.00022465,2]
[377863549,1754584248656,-460.0,0.00022465,2]
[377863550,1754584248665,-460.0,0.00022465,2]
[377863551,1754584248675,-460.0,0.00022465,2]
[377863552,1754584248685,-460.0,0.00022465,2]
[377863553,1754584248694,-460.0,0.00022465,2]
[377863554,1754584248704,-883.31,0.00022465,2]
[377863555,1754584248713,-1015.93,0.00022465,2]
[377863557,1754584248722,-460.0,0.00022465,2]
[377863559,1754584248732,-460.0,0.00022465,2]
[377863560,1754584248742,-460.0,0.00022465,2]
[377863561,1754584248751,-160.0,0.00022465,7]
[377863562,1754584248760,-460.0,0.00022465,2]
[377863563,1754584248769,-460.0,0.00022465,2]
[377863564,1754584248779,-707.88,0.00022465,2]
[377863565,1754584248788,-2546.39,0.00022465,2]
[377863566,1754584248798,-979.54,0.00022465,2]
[377863567,1754584248808,-460.0,0.00022465,2]
[377863568,1754584248819,-460.0,0.00022465,2]
[377863569,1754584248828,-1722.71,0.00022465,2]
[377863570,1754584248837,-700.41358,0.00022465,7]
[377863571,1754584248847,-460.0,0.00022465,2]
[377863572,1754584248856,-700.41358,0.00022465,7]
[377863573,1754584248865,-601.68,0.00022465,2]
[377863574,1754584248875,-638.65,0.00022465,2]
[377863575,1754584248884,-482.09,0.00022465,2]
[377863576,1754584248894,-595.17,0.00022465,2]
[377863577,1754584248905,-668.81,0.00022465,2]
[377863578,1754584248915,-482.74,0.00022465,2]
[377863579,1754584248924,-460.0,0.00022465,2]
[377863580,1754584248934,-494.26,0.00022465,2]
[377863581,1754584248944,-460.0,0.00022465,2]
[377863582,1754584248954,-500.9315952,0.00022473,2]
[377863583,1754584248964,-305.00355969,0.00022473,2]
[377863584,1754584248973,-500.0,0.00022473,2]
[377863585,1754584248984,-472.1708207,0.00022473,2]
[377863586,1754584248994,-502.91527638,0.00022473,2]
[377863587,1754584249003,-500.0,0.00022521,2]
[377863588,1754584249014,-501.38135654,0.00022521,2]
[377863589,1754584249024,-1000.0,0.00022521,2]
[377863590,1754584249034,-250.0,0.00022521,2]
[377863591,1754584249046,-1000.0,0.00022521,2]
[377863592,1754584249055,-500.0,0.00022521,2]
[377863593,1754584249065,-502.23515975,0.00022521,2]
[377863594,1754584249075,-1000.0,0.00022521,2]
[377863595,1754584249084,-500.0,0.00022521,2]
[377863596,1754584249094,-500.0,0.00022521,2]
[377863597,1754584249104,-331.85786373,0.00022521,2]
[377863598,1754584249113,-743.17476082,0.00022521,2]
[377863599,1754584249131,-1000.0,0.00022521,2]
[377863600,1754584249146,-1146.67618749,0.00022521,2]
[377863601,1754584249156,-1000.0,0.00022521,2]
[377863602,1754584249166,-1000.0,0.00022521,2]
[377863603,1754584249176,-502.74305937,0.00022521,2]
[377863604,1754584249187,-1000.0,0.00022521,2]
[377863605,1754584249198,-1000.0,0.00022521,2]
[377863606,1754584249208,-237.33598814,0.00022521,2]
[377863607,1754584249218,-500.0,0.00022521,2]
[377863608,1754584249228,-1000.0,0.0002263,2]